bitfinex/quotes_BTCUSD_20250624
["timestamp","ask_amount","ask_price","bid_price","bid_amount"]
[1750760498168,0.0336,105370.0,105360.0,0.21050186]
[1750760498571,0.0346,105370.0,105360.0,0.22150186]
[1750760500737,0.063114,105370.0,105360.0,0.22150186]
[1750760516909,0.0346,105370.0,105360.0,0.22150186]
[1750760531178,0.0346,105370.0,105360.0,0.24051186]
[1750760531414,0.0346,105370.0,105360.0,0.22150186]
[1750760532258,0.0346,105370.0,105360.0,0.026]
[1750760532678,0.0346,105370.0,105340.0,0.002]
[1750760532679,0.003,105370.0,105340.0,0.002]
[1750760532877,0.031,105350.0,105340.0,0.19750186]
[1750760533719,0.05926076,105350.0,105340.0,0.19750186]
[1750760534357,0.06126076,105350.0,105340.0,0.21250186]
[1750760535192,0.06226076,105350.0,105340.0,0.22350186]
[1750760542014,0.06226076,105350.0,105340.0,0.128]
[1750760542246,0.06226076,105350.0,105340.0,0.028]
[1750760542487,0.06226076,105350.0,105300.0,0.0156]
[1750760542488,0.032,105330.0,105300.0,0.0156]
[1750760542707,0.0159,105320.0,105310.0,0.09550186]
[1750760542926,0.0159,105320.0,105310.0,0.19550186]
[1750760543587,0.0313,105320.0,105310.0,0.19550186]
[1750760543803,0.0313,105320.0,105310.0,0.19564009]
[1750760544479,0.0313,105320.0,105310.0,0.00013823]
[1750760544725,0.0333,105320.0,105310.0,0.00413823]
[1750760544940,0.06183,105320.0,105310.0,0.00413823]
[1750760545419,0.05983,105320.0,105310.0,0.09564009]
[1750760545642,0.0159,105320.0,105310.0,0.09564009]
[1750760545865,0.001,105320.0,105310.0,0.11174009]
[1750760546299,0.0513,105330.0,105310.0,0.11174009]
[1750760546524,0.0513,105330.0,105320.0,0.09550186]
[1750760547413,0.0573,105330.0,105320.0,0.09550186]
[1750760548565,0.0513,105330.0,105320.0,0.09550186]
[1750760548788,0.0563,105330.0,105320.0,0.09550186]
[1750760549285,0.0513,105330.0,105320.0,0.09550186]
[1750760549485,0.0385,105330.0,105320.0,0.09550186]
[1750760550610,0.0445,105330.0,105320.0,0.09550186]
[1750760551029,0.013,105330.0,105320.0,0.11080186]
[1750760551655,0.028,105330.0,105320.0,0.09550186]
[1750760554891,0.014044,105330.0,105320.0,0.09550186]
[1750760556053,0.043926,105340.0,105320.0,0.11170186]
[1750760557280,0.048926,105340.0,105320.0,0.11170186]
[1750760557882,0.065026,105340.0,105320.0,0.11170186]
[1750760558346,0.0161,105330.0,105320.0,0.09550186]
[1750760559834,0.0171,105330.0,105320.0,0.09550186]
[1750760560691,0.0201,105330.0,105320.0,0.09550186]
[1750760562430,0.0366,105330.0,105320.0,0.09550186]
[1750760566365,0.03,105320.0,105310.0,0.00013823]
[1750760566582,0.03,105320.0,105310.0,0.09564009]
[1750760567685,0.031,105320.0,105310.0,0.09564009]
[1750760568547,0.03105,105320.0,105310.0,0.09564009]
[1750760569345,0.03305,105320.0,105310.0,0.09564009]
[1750760569548,0.07250445,105320.0,105310.0,0.09564009]
[1750760569677,0.03305,105320.0,105310.0,0.09564009]
[1750760570490,0.00305,105320.0,105310.0,0.11094009]
[1750760570909,0.00305,105320.0,105310.0,0.12654009]
[1750760573378,0.03574911,105320.0,105310.0,0.12654009]
[1750760573579,0.00305,105320.0,105310.0,0.12654009]
[1750760575992,0.00305,105320.0,105310.0,0.11094009]
[1750760576209,0.05243396,105320.0,105310.0,0.09564009]
[1750760576629,0.03555,105320.0,105310.0,0.09564009]
[1750760579672,0.06774645,105320.0,105310.0,0.09564009]
[1750760583248,0.05124645,105320.0,105310.0,0.09564009]
[1750760583477,0.03524645,105320.0,105310.0,0.09564009]
[1750760583701,0.03524645,105320.0,105310.0,0.11064009]
[1750760583916,0.03524645,105320.0,105310.0,0.09564009]
[1750760584138,0.05084645,105320.0,105310.0,0.09564009]
[1750760584357,0.03524645,105320.0,105310.0,0.11124009]
[1750760584784,0.03524645,105320.0,105310.0,0.12694009]
[1750760587716,0.03524645,105320.0,105310.0,0.11124009]
[1750760590325,0.03524645,105320.0,105310.0,0.12664009]
[1750760591022,0.03524645,105320.0,105310.0,0.11124009]
[1750760592367,0.05104645,105320.0,105310.0,0.09564009]
[1750760595110,0.03524645,105320.0,105310.0,0.11074009]
[1750760596926,0.05064645,105320.0,105310.0,0.09564009]
[1750760597228,0.05064645,105320.0,105310.0,0.11134009]
[1750760600192,0.03524645,105320.0,105310.0,0.11134009]
[1750760600397,0.03524645,105320.0,105310.0,0.12734009]
[1750760604305,0.00305,105320.0,105310.0,0.12734009]
[1750760604528,0.00027644,105320.0,105310.0,0.12734009]
[1750760604742,0.00027644,105320.0,105310.0,0.22734009]
[1750760605796,0.01327644,105320.0,105310.0,0.22734009]
[1750760606010,0.013,105320.0,105310.0,0.22734009]
[1750760606294,0.034,105320.0,105310.0,0.22734009]
[1750760606922,0.03306794,105330.0,105310.0,0.22824009]
[1750760607129,0.04866794,105330.0,105320.0,0.09550186]
[1750760607334,0.0156,105330.0,105320.0,0.09550186]
[1750760608074,0.0156,105330.0,105320.0,0.11080186]
[1750760609061,0.0166,105330.0,105320.0,0.11080186]
[1750760609265,0.0186,105330.0,105320.0,0.11080186]
[1750760609467,0.05120265,105330.0,105320.0,0.09550186]
[1750760609679,0.05020265,105330.0,105320.0,0.09550186]
[1750760609927,0.0156,105330.0,105320.0,0.09550186]
[1750760610138,0.0186,105330.0,105320.0,0.09550186]
[1750760612857,0.06718177,105330.0,105320.0,0.09550186]
[1750760616338,0.05058177,105330.0,105320.0,0.09550186]
[1750760624012,0.05058177,105330.0,105320.0,0.08800468]
[1750760629996,0.05058177,105330.0,105320.0,0.10420468]
[1750760630431,0.03498177,105330.0,105320.0,0.10420468]
[1750760633755,0.05038177,105330.0,105320.0,0.10420468]
[1750760634961,0.05038177,105330.0,105320.0,0.08800468]
[1750760639729,0.06648177,105330.0,105320.0,0.08800468]
[1750760640942,0.09500577,105330.0,105320.0,0.08800468]
[1750760648942,0.07890577,105330.0,105320.0,0.08800468]
[1750760649157,0.03498177,105330.0,105320.0,0.10360468]
[1750760649369,0.03498177,105330.0,105320.0,0.11970468]
[1750760650040,0.03498177,105330.0,105320.0,0.10360468]
[1750760656103,0.05098177,105330.0,105320.0,0.10360468]
[1750760656788,0.06658177,105330.0,105320.0,0.08800468]
[1750760660499,0.09510577,105330.0,105320.0,0.08800468]
[1750760684303,0.06350577,105330.0,105320.0,0.10330468]
[1750760689240,0.06350577,105330.0,105320.0,0.11980468]
[1750760689394,0.03498177,105330.0,105320.0,0.11980468]
[1750760690190,0.003,105330.0,105320.0,0.11980468]
[1750760690390,0.03095309,105330.0,105320.0,0.11980468]
[1750760690596,0.00036374,105330.0,105320.0,0.11980468]
[1750760692367,0.02853609,105330.0,105320.0,0.11980468]
[1750760692573,0.00036374,105330.0,105320.0,0.11980468]
[1750760695862,0.00036374,105330.0,105320.0,0.10330468]
[1750760696561,0.02792687,105330.0,105320.0,0.10330468]
[1750760696789,0.00036374,105330.0,105320.0,0.10330468]
[1750760697218,0.00036374,105330.0,105320.0,0.11850468]
[1750760698818,0.00036374,105330.0,105320.0,0.10330468]
[1750760699032,0.00036374,105330.0,105320.0,0.08800468]
[1750760699232,0.00036374,105330.0,105320.0,0.10330468]
[1750760700331,0.01566374,105330.0,105320.0,0.08800468]
[1750760701038,0.04008628,105330.0,105320.0,0.08800468]
[1750760701238,0.05508628,105330.0,105320.0,0.08800468]
[1750760701438,0.03066374,105330.0,105320.0,0.08800468]
[1750760703951,0.05918774,105330.0,105320.0,0.08800468]
[1750760704383,0.08411451,105330.0,105320.0,0.08800468]
[1750760713445,0.08167451,105330.0,105320.0,0.08800468]
[1750760722989,0.03815051,105330.0,105320.0,0.08800468]
[1750760725313,0.05365051,105330.0,105320.0,0.08800468]
[1750760730918,0.08217651,105330.0,105320.0,0.08800468]
[1750760731189,0.08217651,105330.0,105310.0,0.00013823]
[1750760731360,0.0304,105320.0,105310.0,0.19564009]
[1750760732783,0.015,105320.0,105310.0,0.19564009]
[1750760732991,0.08385277,105330.0,105310.0,0.21164009]
[1750760733178,0.08385277,105330.0,105320.0,0.09550186]
[1750760733384,0.06845277,105330.0,105320.0,0.09550186]
[1750760733975,0.06945277,105330.0,105320.0,0.09550186]
[1750760734616,0.06845277,105330.0,105320.0,0.09550186]
[1750760734961,0.06945277,105330.0,105320.0,0.09550186]
[1750760736060,0.07145277,105330.0,105320.0,0.09650186]
[1750760736670,0.08655277,105330.0,105320.0,0.09650186]
[1750760737269,0.07145277,105330.0,105320.0,0.09650186]
[1750760740886,0.08725277,105330.0,105320.0,0.09650186]
[1750760751167,0.07145277,105330.0,105320.0,0.09650186]
[1750760757000,0.08715277,105330.0,105320.0,0.09650186]
[1750760760333,0.07145277,105330.0,105320.0,0.09650186]
[1750760761586,0.08715277,105330.0,105320.0,0.09650186]
[1750760769124,0.07145277,105330.0,105320.0,0.09650186]
[1750760773074,0.08685277,105330.0,105320.0,0.09650186]
[1750760774523,0.07145277,105330.0,105320.0,0.09650186]
[1750760776577,0.02792677,105330.0,105320.0,0.11230186]
[1750760776772,0.04452677,105330.0,105320.0,0.09650186]
[1750760778694,0.02792677,105330.0,105320.0,0.11220186]
[1750760779021,0.02792677,105330.0,105320.0,0.12760186]
[1750760779624,0.02792677,105330.0,105320.0,0.11220186]
[1750760782099,0.04452677,105330.0,105320.0,0.11220186]
[1750760782458,0.04452677,105330.0,105320.0,0.09650186]
[1750760790706,0.06062677,105330.0,105320.0,0.09650186]
[1750760791093,0.08915077,105330.0,105320.0,0.09650186]
[1750760791915,0.08915077,105330.0,105320.0,0.001]
[1750760793304,0.08915077,105330.0,105310.0,0.00013823]
[1750760793305,0.0313,105320.0,105310.0,0.00013823]
[1750760795806,0.12942057,105330.0,105300.0,0.002]
[1750760796014,0.0318,105310.0,105300.0,0.002]
[1750760796442,0.62010186,105310.0,105300.0,0.002]
[1750760796662,0.0318,105290.0,105280.0,0.002]
[1750760797895,0.035605,105290.0,105280.0,0.002]
[1750760798104,0.03565102,105290.0,105280.0,0.002]
[1750760798310,0.03765102,105290.0,105280.0,0.003]
[1750760798727,0.03865102,105290.0,105280.0,0.003]
[1750760799154,0.03765102,105290.0,105280.0,0.003]
[1750760800138,0.03565102,105290.0,105280.0,0.002]
[1750760800337,0.03565102,105290.0,105280.0,0.09750186]
[1750760800508,0.01995102,105290.0,105280.0,0.09750186]
[1750760800709,0.00485102,105290.0,105280.0,0.09750186]
[1750760800895,0.03326234,105290.0,105280.0,0.09750186]
[1750760801546,0.03426234,105290.0,105280.0,0.09750186]
[1750760802065,0.05056234,105290.0,105280.0,0.09750186]
[1750760804098,0.03426234,105290.0,105280.0,0.09750186]
[1750760806582,0.03372576,105290.0,105280.0,0.11370186]
[1750760808800,0.05022576,105290.0,105280.0,0.09750186]
[1750760809000,0.06522576,105290.0,105280.0,0.09750186]
[1750760809540,0.06522576,105290.0,105280.0,0.002]
[1750760809799,0.06527576,105290.0,105280.0,0.002]
[1750760811786,0.06743485,105290.0,105280.0,0.002]
[1750760818603,0.16741485,105290.0,105280.0,0.002]
[1750760818843,0.06743485,105290.0,105280.0,0.002]
[1750760821827,0.56023485,105290.0,105280.0,0.002]
[1750760825363,0.58294738,105290.0,105280.0,0.002]
[1750760831646,0.58078829,105290.0,105280.0,0.002]
[1750760834115,0.71544434,105290.0,105280.0,0.002]
[1750760834980,0.79174621,105290.0,105280.0,0.002]
[1750760835183,0.71544434,105290.0,105280.0,0.002]
[1750760837813,0.58078829,105290.0,105280.0,0.002]
[1750760845137,0.58745281,105290.0,105280.0,0.002]
[1750760845571,0.58078829,105290.0,105280.0,0.002]
[1750760845968,0.58078829,105290.0,105280.0,0.00072]
[1750760847000,0.56578829,105290.0,105280.0,0.00072]
[1750760847174,0.52657576,105290.0,105280.0,0.01662]
[1750760847374,0.52657576,105290.0,105280.0,0.03312]
[1750760849436,0.52657576,105290.0,105280.0,0.01662]
[1750760852880,0.52657576,105290.0,105280.0,0.12762186]
[1750760857065,0.03377576,105290.0,105280.0,0.12762186]
[1750760859759,0.00536444,105290.0,105280.0,0.12762186]
[1750760863574,0.00536444,105290.0,105280.0,0.11212186]
[1750760863995,0.00536444,105290.0,105280.0,0.09622186]
[1750760864180,0.03766444,105290.0,105280.0,0.09622186]
[1750760865531,0.03766444,105290.0,105280.0,0.00072]
[1750760866540,0.02176444,105290.0,105280.0,0.00072]
[1750760867070,0.03806444,105290.0,105280.0,0.00072]
[1750760880694,0.02176444,105290.0,105280.0,0.00072]
[1750760883958,0.03766444,105290.0,105280.0,0.00072]
[1750760887668,0.02176444,105290.0,105280.0,0.00072]
[1750760898286,0.03836444,105290.0,105280.0,0.00072]
[1750760900554,0.02176444,105290.0,105280.0,0.00072]
[1750760901734,0.0304,105280.0,105270.0,0.0002]
[1750760902515,0.0472,105280.0,105270.0,0.0002]
[1750760902912,0.0482,105280.0,105270.0,0.0002]
[1750760903896,0.0492,105280.0,105270.0,0.0002]
[1750760905380,0.0315,105270.0,105260.0,0.0022]
[1750760906738,0.0152,105260.0,105250.0,0.0002]
[1750760906945,0.0314,105260.0,105250.0,0.00909948]
[1750760907394,0.059949,105260.0,105250.0,0.00909948]
[1750760907815,0.028549,105260.0,105240.0,0.002]
[1750760908028,0.0314,105250.0,105240.0,0.002]
[1750760909212,0.0314,105250.0,105240.0,0.00208744]
[1750760910011,0.0152,105250.0,105240.0,0.00208744]
[1750760910618,0.0172,105250.0,105240.0,0.00208744]
[1750760911667,0.0182,105250.0,105240.0,0.00208744]
[1750760912871,0.03520868,105250.0,105240.0,0.00208744]
[1750760915326,0.05240868,105250.0,105240.0,0.00208744]
[1750760916324,0.05240868,105250.0,105240.0,0.1137893]
[1750760916325,0.03720868,105250.0,105240.0,0.1137893]
[1750760916570,0.03720868,105250.0,105240.0,0.1297893]
[1750760917375,0.03720868,105250.0,105240.0,0.1286293]
[1750760926865,0.03720868,105250.0,105240.0,0.1126293]
[1750760931563,0.03720868,105250.0,105240.0,0.1279293]
[1750760934931,0.03720868,105250.0,105240.0,0.1126293]
[1750760938055,0.05240868,105250.0,105240.0,0.0964293]
[1750760940514,0.06830868,105250.0,105240.0,0.0964293]
[1750760940713,0.06830868,105250.0,105240.0,0.00092744]
[1750760943412,0.06835868,105250.0,105240.0,0.00092744]
[1750760947813,0.03725868,105250.0,105240.0,0.1115293]
[1750760948852,0.03725868,105250.0,105240.0,0.1273293]
[1750760949689,0.03725868,105250.0,105240.0,0.1115293]
[1750760950615,0.03725868,105250.0,105240.0,0.0964293]
[1750760950796,0.05285868,105250.0,105240.0,0.0964293]
[1750760951568,0.03725868,105250.0,105240.0,0.0964293]
[1750760951769,0.03725868,105250.0,105240.0,0.1125293]
[1750760959283,0.03725868,105250.0,105240.0,0.1275293]
[1750760960498,0.03725868,105250.0,105240.0,0.1125293]
[1750760962766,0.03725868,105250.0,105240.0,0.1283293]
[1750760964144,0.03525868,105250.0,105240.0,0.1283293]
[1750760964317,0.03725868,105250.0,105240.0,0.1283293]
[1750760964892,0.03625868,105250.0,105240.0,0.1283293]
[1750760965735,0.03725868,105250.0,105240.0,0.1283293]
[1750760967789,0.03625868,105250.0,105240.0,0.1283293]
[1750760968218,0.03725868,105250.0,105240.0,0.1303293]
[1750760969029,0.03725868,105250.0,105240.0,0.1145293]
[1750760970204,0.03725868,105250.0,105240.0,0.1309293]
[1750760973527,0.02005868,105250.0,105240.0,0.1309293]
[1750760973743,0.02005868,105250.0,105240.0,0.1145293]
[1750760977098,0.02005868,105250.0,105240.0,0.1295293]
[1750760978546,0.05245868,105250.0,105240.0,0.0984293]
[1750760981861,0.08100468,105250.0,105240.0,0.0984293]
[1750760988507,0.06510468,105250.0,105240.0,0.0984293]
[1750760990186,0.06510468,105250.0,105240.0,0.1150293]
[1750760990630,0.04860468,105250.0,105240.0,0.1150293]
[1750760991030,0.04865468,105250.0,105240.0,0.1150293]
[1750760992419,0.04865468,105250.0,105240.0,0.1314293]
[1750760994701,0.02010868,105250.0,105240.0,0.1314293]
[1750760997561,0.02010868,105250.0,105240.0,0.1150293]
[1750761001246,0.03510868,105250.0,105240.0,0.0984293]
[1750761001531,0.05010868,105250.0,105240.0,0.0984293]
[1750761001934,0.07865468,105250.0,105240.0,0.0984293]
[1750761018599,0.07865468,105250.0,105240.0,0.0984293]
[1750761026080,0.06365468,105250.0,105240.0,0.0984293]
[1750761026289,0.04865468,105250.0,105240.0,0.1143293]
[1750761026950,0.08065468,105250.0,105240.0,0.0984293]
[1750761027787,0.06485468,105250.0,105240.0,0.0984293]
[1750761028413,0.08115468,105250.0,105240.0,0.0984293]
[1750761046395,0.08154334,105250.0,105240.0,0.0984293]
[1750761050545,0.08115468,105250.0,105240.0,0.0984293]
[1750761050765,0.04865468,105250.0,105240.0,0.1144293]
[1750761051454,0.04865468,105250.0,105240.0,0.1302293]
[1750761052818,0.04865468,105250.0,105240.0,0.1144293]
[1750761057635,0.06525468,105250.0,105240.0,0.0984293]
[1750761059330,0.08115468,105250.0,105240.0,0.0984293]
[1750761062405,0.08115468,105250.0,105240.0,0.00292744]
[1750761064874,0.08015468,105250.0,105240.0,0.00092744]
[1750761065014,0.08115468,105250.0,105240.0,0.00192744]
[1750761066250,0.06525468,105250.0,105240.0,0.00192744]
[1750761066761,0.07985468,105250.0,105240.0,0.00092744]
[1750761066972,0.08085468,105250.0,105240.0,0.00192744]
[1750761067196,0.07885468,105250.0,105240.0,0.00192744]
[1750761068690,0.08085468,105250.0,105240.0,0.00292744]
[1750761070586,0.06525468,105250.0,105240.0,0.0984293]
[1750761070802,0.04865468,105250.0,105240.0,0.1139293]
[1750761072633,0.06365468,105250.0,105240.0,0.0984293]
[1750761083132,0.07885468,105250.0,105240.0,0.0984293]
[1750761086953,0.07885468,105250.0,105240.0,0.00292744]
[1750761093406,0.04865468,105250.0,105240.0,0.1141293]
[1750761093646,0.04865468,105250.0,105240.0,0.1296293]
[1750761094262,0.02010868,105250.0,105240.0,0.1296293]
[1750761094462,0.01910868,105250.0,105240.0,0.1286293]
[1750761094720,0.01910868,105250.0,105240.0,0.1296293]
[1750761094721,0.02010868,105250.0,105240.0,0.1296293]
[1750761095373,0.01910868,105250.0,105240.0,0.1286293]
[1750761095580,0.01910868,105250.0,105240.0,0.1276293]
[1750761095581,0.01710868,105250.0,105240.0,0.1276293]
[1750761095790,0.02010868,105250.0,105240.0,0.1286293]
[1750761096226,0.01710868,105250.0,105240.0,0.1276293]
[1750761096439,0.01710868,105250.0,105240.0,0.1296293]
[1750761096440,0.01810868,105250.0,105240.0,0.1296293]
[1750761096872,0.01910868,105250.0,105240.0,0.1316293]
[1750761097919,0.01910868,105250.0,105240.0,0.1161293]
[1750761099058,0.01910868,105250.0,105240.0,0.1004293]
[1750761099059,0.03460868,105250.0,105240.0,0.1004293]
[1750761099278,0.05040868,105250.0,105240.0,0.1004293]
[1750761099483,0.03460868,105250.0,105240.0,0.1004293]
[1750761099688,0.01910868,105250.0,105240.0,0.1160293]
[1750761103961,0.04765368,105250.0,105240.0,0.1160293]
[1750761104405,0.04765368,105250.0,105240.0,0.1004293]
[1750761104620,0.06295368,105250.0,105240.0,0.1004293]
[1750761105555,0.07845368,105250.0,105240.0,0.1004293]
[1750761117653,0.06295368,105250.0,105240.0,0.1004293]
[1750761118632,0.07845368,105250.0,105240.0,0.1004293]
[1750761120761,0.06295368,105250.0,105240.0,0.1004293]
[1750761127989,0.07815368,105250.0,105240.0,0.1004293]
[1750761130204,0.07815368,105250.0,105240.0,0.00492744]
[1750761133982,0.0318,105240.0,105230.0,0.0002]
[1750761134194,0.0318,105240.0,105230.0,0.00066187]
[1750761135000,0.06097436,105240.0,105230.0,0.00066187]
[1750761135409,0.06197436,105240.0,105230.0,0.00266187]
[1750761135945,0.06097436,105240.0,105230.0,0.00066187]
[1750761136140,0.06097436,105240.0,105230.0,0.00266187]
[1750761136393,0.06197436,105240.0,105230.0,0.00266187]
[1750761137368,0.06397436,105240.0,105230.0,0.00266187]
[1750761138811,0.09252536,105240.0,105230.0,0.00266187]
[1750761140989,0.0305,105230.0,105220.0,0.0022]
[1750761141197,0.0305,105230.0,105210.0,0.01626]
[1750761141458,0.0305,105230.0,105210.0,0.11176186]
[1750761141692,0.0175,105220.0,105210.0,0.11176186]
[1750761142321,0.0325,105220.0,105210.0,0.09576186]
[1750761143414,0.0345,105220.0,105210.0,0.09576186]
[1750761144059,0.0345,105220.0,105210.0,0.11116186]
[1750761144294,0.0195,105220.0,105210.0,0.11116186]
[1750761145446,0.0205,105220.0,105210.0,0.11116186]
[1750761149690,0.0205,105220.0,105210.0,0.12706186]
[1750761150563,0.0205,105220.0,105210.0,0.11116186]
[1750761153759,0.0358,105220.0,105210.0,0.09576186]
[1750761153983,0.0508,105220.0,105210.0,0.09576186]
[1750761154931,0.0358,105220.0,105210.0,0.09576186]
[1750761156665,0.0508,105220.0,105210.0,0.09576186]
[1750761162130,0.05588,105220.0,105210.0,0.09576186]
[1750761162357,0.0508,105220.0,105210.0,0.00026]
[1750761162804,0.5436,105220.0,105210.0,1e-08]
[1750761163041,0.0328,105200.0,105190.0,6.38e-05]
[1750761164396,0.03325997,105200.0,105190.0,6.38e-05]
[1750761164623,0.04885997,105200.0,105190.0,6.38e-05]
[1750761165880,0.05374597,105200.0,105190.0,6.38e-05]
[1750761166090,0.04985997,105200.0,105190.0,6.38e-05]
[1750761166522,0.04985997,105200.0,105190.0,0.11116566]
[1750761166523,0.01705997,105200.0,105190.0,0.11116566]
[1750761166792,0.01605997,105200.0,105190.0,0.11116566]
[1750761167008,0.01805997,105200.0,105190.0,0.11116566]
[1750761167195,0.00245997,105200.0,105190.0,0.12696566]
[1750761168286,0.00345997,105200.0,105190.0,0.12696566]
[1750761168931,0.00145997,105200.0,105190.0,0.12696566]
[1750761169354,0.00245997,105200.0,105190.0,0.12696566]
[1750761181121,6.085e-05,105200.0,105190.0,0.12696566]
[1750761181674,6.085e-05,105200.0,105190.0,0.22696566]
[1750761181969,2.98e-06,105200.0,105190.0,0.22696566]
[1750761182263,0.002,105230.0,105190.0,0.22696566]
[1750761182453,0.002,105230.0,105210.0,0.19550186]
[1750761183108,0.030552,105230.0,105210.0,0.19550186]
[1750761185195,0.0594965,105230.0,105210.0,0.19550186]
[1750761185753,0.0754965,105230.0,105210.0,0.19550186]
[1750761187209,0.016,105220.0,105210.0,0.19550186]
[1750761188073,0.016,105220.0,105210.0,0.19650186]
[1750761188510,0.016,105220.0,105210.0,0.19750186]
[1750761188731,0.016,105220.0,105210.0,0.19550186]
[1750761188925,0.017,105220.0,105210.0,0.19650186]
[1750761189360,0.019,105220.0,105210.0,0.19850186]
[1750761189594,0.019,105220.0,105210.0,0.21751027]
[1750761194886,0.003,105220.0,105210.0,0.21751027]
[1750761195091,0.003,105220.0,105210.0,0.23411027]
[1750761195744,0.003,105220.0,105210.0,0.24951027]
[1750761198262,0.00026583,105220.0,105210.0,0.24951027]
[1750761199706,0.00026583,105220.0,105210.0,0.94951027]
[1750761201078,2.929e-05,105220.0,105210.0,0.94951027]
[1750761202759,2.929e-05,105220.0,105210.0,0.24951027]
[1750761208076,0.002,105230.0,105220.0,0.02851059]
[1750761208282,0.002,105230.0,105220.0,0.14001245]
[1750761209693,0.003,105230.0,105220.0,0.14301245]
[1750761213120,0.004,105230.0,105220.0,0.14301245]
[1750761214933,0.0194,105230.0,105220.0,0.12701245]
[1750761218069,0.004,105230.0,105220.0,0.14321245]
[1750761222713,0.00044715,105230.0,105220.0,0.15931245]
[1750761222920,0.0022,105250.0,105240.0,0.05970517]
[1750761223142,0.0022,105250.0,105240.0,0.25520703]
[1750761224276,0.0022,105250.0,105240.0,0.25525304]
[1750761224910,0.0132,105250.0,105240.0,0.25525304]
[1750761225264,0.0132,105250.0,105240.0,0.23975304]
[1750761225682,0.0312,105250.0,105240.0,0.24075304]
[1750761230449,0.0202,105250.0,105240.0,0.24075304]
[1750761230656,0.0032,105250.0,105240.0,0.24275304]
[1750761231071,0.0042,105250.0,105240.0,0.24775304]
[1750761231557,0.0042,105250.0,105240.0,0.24475304]
[1750761231750,0.0032,105250.0,105240.0,0.24475304]
[1750761233121,0.0152,105250.0,105240.0,0.24575304]
[1750761233639,0.0032,105250.0,105240.0,0.24475304]
[1750761233873,0.0042,105250.0,105240.0,0.24775304]
[1750761235833,0.0042,105250.0,105240.0,0.23205304]
[1750761236061,0.0346,105250.0,105240.0,0.23205304]
[1750761237200,0.063143,105250.0,105240.0,0.23205304]
[1750761247023,0.047843,105250.0,105240.0,0.23205304]
[1750761247221,0.0193,105250.0,105240.0,0.23205304]
[1750761247885,0.0042,105250.0,105240.0,0.24705304]
[1750761248938,0.00060892,105250.0,105240.0,0.24705304]
[1750761249151,0.00060892,105250.0,105240.0,0.26315304]
[1750761251544,0.00060892,105250.0,105240.0,0.24705304]
[1750761258629,0.00060892,105250.0,105240.0,0.94705304]
[1750761258980,0.00060892,105250.0,105240.0,0.96305304]
[1750761259192,0.00010718,105250.0,105240.0,0.96305304]
[1750761261695,0.00010718,105250.0,105240.0,0.94705304]
[1750761264184,0.00010718,105250.0,105240.0,0.96285304]
[1750761265098,0.00010718,105250.0,105240.0,0.94705304]
[1750761268370,0.00010718,105250.0,105240.0,0.93205304]
[1750761268670,0.01550718,105250.0,105240.0,0.93205304]
[1750761268955,0.03135,105260.0,105250.0,0.02850246]
[1750761269166,0.03135,105260.0,105250.0,0.12400432]
[1750761269733,0.01545,105260.0,105250.0,0.12400432]
[1750761270158,0.01645,105260.0,105250.0,0.12700432]
[1750761271652,0.03365,105260.0,105250.0,0.12900432]
[1750761291319,0.01745,105260.0,105250.0,0.14510432]
[1750761291544,0.00205,105260.0,105250.0,0.14510432]
[1750761293085,0.01735,105260.0,105250.0,0.12900432]
[1750761294541,0.00205,105260.0,105250.0,0.14530432]
[1750761295487,0.00205,105260.0,105250.0,0.16100432]
[1750761297146,0.00205,105260.0,105250.0,0.86100432]
[1750761299674,0.00205,105260.0,105250.0,0.87261933]
[1750761300954,0.00205,105260.0,105250.0,0.84530432]
[1750761302328,0.00205,105260.0,105250.0,0.14530432]
[1750761303437,0.00205,105260.0,105250.0,0.1565607]
[1750761304646,0.00205,105260.0,105250.0,0.14530432]
[1750761306060,0.00205,105260.0,105250.0,0.15693436]
[1750761308197,0.00205,105260.0,105250.0,0.17203436]
[1750761308687,0.00041782,105260.0,105250.0,0.19104436]
[1750761308894,0.00041782,105260.0,105250.0,0.29104436]
[1750761309533,0.00215,105270.0,105260.0,0.04419976]
[1750761309701,0.00215,105270.0,105260.0,0.23970162]
[1750761309915,0.00215,105270.0,105260.0,0.93970162]
[1750761310774,0.01715,105270.0,105260.0,0.94070162]
[1750761310980,0.01715,105270.0,105260.0,0.95620162]
[1750761313083,0.02815,105270.0,105260.0,0.95720162]
[1750761320152,0.0127122,105270.0,105260.0,0.95720162]
[1750761321536,0.0127122,105270.0,105260.0,1.24880162]
[1750761321737,0.0127122,105270.0,105260.0,0.54880162]
[1750761324820,0.0127122,105270.0,105260.0,1.24880162]
[1750761325236,0.00341659,105270.0,105260.0,1.24880162]
[1750761331820,0.00341659,105270.0,105260.0,1.23330162]
[1750761332078,0.01911659,105270.0,105260.0,1.21760162]
[1750761333229,0.01911659,105270.0,105260.0,0.92600162]
[1750761337961,0.01911659,105270.0,105260.0,0.22600162]
[1750761340371,0.00525604,105270.0,105260.0,0.22600162]
[1750761340575,0.01625,105280.0,105270.0,0.02849706]
[1750761340795,0.01625,105280.0,105270.0,0.22399892]
[1750761342332,0.01725,105280.0,105270.0,0.22999892]
[1750761343404,0.03275,105280.0,105270.0,0.22999892]
[1750761344029,0.03375,105280.0,105270.0,0.23999892]
[1750761345673,0.01765,105280.0,105270.0,0.23999892]
[1750761350908,0.01765,105280.0,105270.0,0.93999892]
[1750761352589,0.00215,105280.0,105270.0,0.93999892]
[1750761352797,0.00215,105280.0,105270.0,0.95519892]
[1750761354244,0.00215,105280.0,105270.0,0.97109892]
[1750761354473,0.00064386,105280.0,105270.0,0.99010892]
[1750761354671,0.0022,105290.0,105280.0,0.06069434]
[1750761354837,0.0022,105290.0,105280.0,0.2561962]
[1750761355844,0.00228746,105290.0,105280.0,0.2752062]
[1750761356061,0.00228746,105290.0,105280.0,0.2592062]
[1750761356269,0.00828746,105290.0,105280.0,0.2602062]
[1750761356681,0.00828746,105290.0,105280.0,0.9602062]
[1750761356885,0.01528746,105290.0,105280.0,0.9612062]
[1750761357548,0.01528746,105290.0,105280.0,0.9450062]
[1750761358247,0.01528746,105290.0,105280.0,0.2450062]
[1750761359229,0.01528746,105290.0,105280.0,0.3449962]
[1750761360944,0.01528746,105290.0,105280.0,0.3601962]
[1750761361344,0.01528746,105290.0,105280.0,1.0601962]
[1750761361580,0.01528746,105290.0,105280.0,0.3763962]
[1750761361976,0.01528746,105290.0,105280.0,0.3601962]
[1750761363646,0.01528746,105290.0,105280.0,0.5501658]
[1750761364020,0.01528746,105290.0,105280.0,0.5663658]
[1750761364643,0.01528746,105290.0,105280.0,1.2663658]
[1750761365056,0.01528746,105290.0,105280.0,1.2501658]
[1750761365667,0.01528746,105290.0,105280.0,1.2349658]
[1750761366269,0.01528746,105290.0,105280.0,0.5349658]